{"text_format":"1","workbook":"xlsx","n_sheets":12,"sheets":["1. Forside","2. Samlet prisloft","3. Driftsomkostninger","4. Historiske investeringer","5. Gennemførte investeringer","6. Korrektion investeringer","7. Planlagte investeringer","8. 1-1 omkostninger","9. Miljø- og servicemål","10. Nettofinansielle poster","11. Over- eller underdækning","12. Kontrol med indtægtsrammen"],"not_rendered":{"charts":0,"images":0,"macros":1,"external_links":0,"defined_names":0,"comments":0,"pivot_tables":0},"unopened":[],"bounds":{"document_bytes":16777216,"sheet_cells":100000,"rows_first":2000,"rows_last":500,"rows_between":2000,"halvings":0,"cell_chars":16384,"cell_head_chars":4096},"cells_cut":0,"cells_raw":0,"read":"whole","date_system":"1900"}

{"sheet":"1. Forside","index":0,"n_rows":26,"n_cols":4,"rows_kept":26,"cut":false,"hidden":false,"merged":[[25,3,25,5],[24,3,24,5],[23,3,23,5],[22,3,22,5],[21,3,21,5],[20,3,20,5],[19,3,19,5],[18,3,18,5],[7,3,7,5],[12,3,12,5],[15,3,15,5],[16,3,16,5],[17,3,17,5]]}
["Verdo Vand A/S"]
[]
[]
[]
[]
[]
[]
[null,null,null,"Bilag A"]
[]
[]
[]
[]
[null,null,null,"Indholdsfortegnelse"]
[]
[]
[null,null,"Fane nr. 2","Samlet prisloft "]
[null,null,"Fane nr. 3","Driftsomkostninger"]
[null,null,"Fane nr. 4","Historiske investeringer "]
[null,null,"Fane nr. 5","Gennemførte investeringer"]
[null,null,"Fane nr. 6","Korrektion investeringer"]
[null,null,"Fane nr. 7","Planlagte investeringer"]
[null,null,"Fane nr. 8","1:1 omkostninger"]
[null,null,"Fane nr. 9","Miljø- og servicemål"]
[null,null,"Fane nr. 10","Nettofinansielle poster"]
[null,null,"Fane nr. 11","Over- eller underdækning"]
[null,null,"Fane nr. 12","Kontrol med indtægtsrammen og oversigt over ekstraordinære effektiviseringsgevinster"]

{"sheet":"2. Samlet prisloft","index":1,"n_rows":38,"n_cols":6,"rows_kept":38,"cut":false,"hidden":false,"merged":[[3,1,3,5]]}
[{"$f":"'1. Forside'!A1","v":"Verdo Vand A/S"}]
[]
[]
[null,"Fane 2. Samlet prisloft for 2015"]
[]
[null,"Driftsomkostninger"]
[null,"Driftsomkostninger i prisloftet for 2014",{"$f":"'3. Driftsomkostninger'!C21","v":11663423.870000001},"kr."]
[null,"Bortfald af væsentlige omkostninger",{"$f":"-'3. Driftsomkostninger'!C17","v":0},"kr."]
[null,"Korrektion for prisudviklingen 2014-2015",{"$f":"'3. Driftsomkostninger'!C23","v":9330.7390960000012},"kr."]
[null,"Forhøjelse til effektivt niveau iht. benchmarkingen",{"$f":"'3. Driftsomkostninger'!C29","v":0},"kr."]
[null,"Korrektion for generelt effektiviseringskrav",{"$f":"-'3. Driftsomkostninger'!C35","v":-51319.065028000005},"kr."]
[null,"Korrektion for individuelt effektiviseringskrav",{"$f":"-'3. Driftsomkostninger'!C44","v":0},"kr."]
[null,"Driftsomkostninger i alt",{"$f":"SUM(C7:C12)","v":11621435.544068001},"kr.",{"$f":"C13","v":11621435.544068001}," kr."]
[null,"Investeringer"]
[null,"Tillæg for historiske investeringer",{"$f":"'4. Historiske investeringer'!C9","v":7973148.1387360226},"kr."]
[null,"Tillæg for gennemførte investeringer i 2011-2013",{"$f":"'5. Gennemførte investeringer'!F27","v":1028089.2116666667},"kr."]
[null,"Korrektion af tillæg for planlagte investeringer vedrørende 2013  ",{"$f":"'6. Korrektion investeringer'!C10","v":-123897.38666666672},"kr."]
[null,"Tillæg for planlagte investeringer i 2014 og 2015",{"$f":"'7. Planlagte investeringer'!F44","v":642125.2333333334},"kr."]
[null,"Investeringstillæg i alt",{"$f":"SUM(C15:C18)","v":9519465.1970693544},"kr.",{"$f":"C19","v":9519465.1970693544}," kr."]
[null,"Øvrige omkostninger mv."]
[null,"Tillæg for 1:1 omkostninger i 2015",{"$f":"'8. 1-1 omkostninger'!C11","v":669000},"kr."]
[null,"Tillæg for afgift for ledningsført vand i 2015",{"$f":"'8. 1-1 omkostninger'!C16","v":14099000},"kr."]
[null,"Tillæg vedr. revisorerklæringer og DANVA/FVD-kontingent",{"$f":"'8. 1-1 omkostninger'!C22","v":153000},"kr."]
[null,"Korrektion ift. faktiske 1:1 omkostninger i 2013",{"$f":"'8. 1-1 omkostninger'!C28","v":1552983},"kr."]
[null,"Tillæg for driftsomkostninger til miljø- og servicemål i 2015",{"$f":"'9. Miljø- og servicemål'!C8","v":283000},"kr."]
[null,"Korrektion ift. faktiske driftsomkostninger til miljø- og servicemål i 2013",{"$f":"'9. Miljø- og servicemål'!C15","v":-34166},"kr."]
[null,"Tillæg/fradrag for nettofinansielle poster i 2015",{"$f":"'10. Nettofinansielle poster'!C9","v":3000000},"kr."]
[null,"Korrektion ift. faktiske nettofinansielle poster i 2013",{"$f":"'10. Nettofinansielle poster'!C16","v":-1539881},"kr."]
[null,"Øvrige omkostninger mv. i alt",{"$f":"SUM(C21:C28)","v":18182936},"kr.",{"$f":"C29","v":18182936}," kr."]
[null,"Historisk over- eller underdækning"]
[null,"Tillæg/fradrag for over- eller underdækning til og med 2010",{"$f":"'11. Over- eller underdækning'!C11","v":-3009491.5026455023},"kr.",{"$f":"C31","v":-3009491.5026455023}," kr."]
[null,"Korrektion i forhold til tidligere indtægtsramme "]
[null,"Korrektion for overholdelse af indtægtsramme i prisloft 2013",{"$f":"'12. Kontrol med indtægtsrammen'!E27","v":-44177.751526802778},"kr.",{"$f":"C33","v":-44177.751526802778}," kr."]
[null,"Samlet prisloft"]
[null,"Indtægtsramme i 2015 ",null,null,{"$f":"SUM(E13:E33)","v":36270167.486965053}," kr."]
[null,"Debiteret vandmængde i 2013",null,null,2370932," m3"]
[null,"Prisloft 2015",null,null,{"$f":"E35/E36","v":15.297852273690284}," kr./m3"]
[null,"Prisloft 2015 ekskl. afgift for ledningsført vand ",null,null,{"$f":"(E35-C22)/E36","v":9.3512456228036278}," kr./m3"]

{"sheet":"3. Driftsomkostninger","index":2,"n_rows":44,"n_cols":4,"rows_kept":44,"cut":false,"hidden":false,"merged":[[3,1,3,3]]}
[{"$f":"'1. Forside'!A1","v":"Verdo Vand A/S"}]
[]
[]
[null,"Fane 3. Driftsomkostninger "]
[]
[null,"Driftsomkostningerne i prisloftet for 2014"]
[null,"Korrigerede driftsomkostninger i prisloftet for 2013 (DOiPL 2013)",12447623,"kr."]
[null,"Prisfremskrivning 1,5 pct.",{"$f":"0.015*SUM(C7:C7)","v":186714.345},"kr."]
[null,"Generelt effektiviseringskrav (0 pct.)",0,"kr."]
[null,"Individuelt effektiviseringskrav ",0,"kr."]
[null,"Bortfald af midlertidigt tillæg  iht. § 8, stk. 5 (inkl. prisfremskrivning)",{"$f":"-1.015*956565","v":-970913.47499999986},"kr."]
[null,"Driftsomkostningerne i prisloftet for 2014 (DOiPL 2014)\n(korrigeret for bortfald af midlertidigt tillæg)",{"$f":"SUM(C7:C11)","v":11663423.870000001},"kr."]
[]
[]
[null,"Korrektion for forventet bortfald af væsentlige omkostninger"]
[null,"Selskabets indberettede bortfald af væsentlige omkostninger inden 2015",0,"kr."]
[null,"Korrektion for forventet bortfald ",{"$f":"SUM(C16:C16)","v":0},"kr."]
[]
[]
[null,"Korrektion for prisudviklingen fra 2014-2015"]
[null,"Driftsomkostningerne i prisloftet for 2014",{"$f":"C12-C17","v":11663423.870000001},"kr."]
[null,"Prisudvikling 2014 - 2015 ",0.08,"pct."]
[null,"Korrektion for prisudvikling",{"$f":"C21*(C22/100)","v":9330.7390960000012},"kr."]
[]
[]
[null,"Eventuel forhøjelse til effektivt niveau iht. benchmarkingen"]
[null,"Selskabets effektive driftsomkostninger iht. benchmarkingen",10521574.7904,"kr."]
[null,"Selskabets pristalskorrigerede driftsomkostninger i 2015-niveau",{"$f":"C21+C23","v":11672754.609096002},"kr."]
[null,"Eventuel forhøjelse til effektivt niveau",{"$f":"IF(C28>C27,0,C27-C28)","v":0},"kr."]
[]
[]
[null,"Korrektion for generelt effektiviseringskrav"]
[null,"Driftsomkostningerne i prisloftet for 2014",{"$f":"C21","v":11663423.870000001},"kr. "]
[null,"Generelt effektiviseringskrav ",0.44,"pct."]
[null,"Endeligt generelt effektiviseringskrav",{"$f":"C33*(C34/100)","v":51319.065028000005},"kr. "]
[]
[]
[null,"Korrektion for individuelt effektiviseringskrav"]
[null,"Rå effektiviseringspotentiale",1141849.2095999999,"kr."]
[null,"Effektiviseringspotentiale efter eventuel korrektion for særlige forhold",1141849.2095999999,"kr."]
[null,"Effektiviseringspotentiale efter forsigtighedshensyn",0,"kr."]
[null,"Effektiviseringspotentiale efter eventuel korrektion for sammensætning af signifikante costdrivere",0,"kr. "]
[null,"Umiddelbart effektiviseringskrav",{"$f":"C42/4","v":0},"kr."]
[null,"Endeligt individuelt effektiviseringskrav",{"$f":"IF(C43>0.05*C21,0.05*C21,IF(C43<0.01*C21,0,C43))","v":0},"kr. "]

{"sheet":"4. Historiske investeringer","index":3,"n_rows":9,"n_cols":4,"rows_kept":9,"cut":false,"hidden":false,"merged":[[3,1,3,2]]}
[{"$f":"'3. Driftsomkostninger'!A1","v":"Verdo Vand A/S"}]
[]
[]
[null,"Fane 4. Historiske investeringer "]
[]
[null,"Tillæg for historiske investeringer "]
[null,"Værdi af selskabets materielle anlægsaktiver pr. 1. januar 2010",380504238.97183341,"kr."]
[null,"Den årlige standardafskrivning på de materielle anlægsaktiver iht. POLKA",7973148.1387360226,"kr."]
[null,"Tillæg i alt i 2015",{"$f":"C8","v":7973148.1387360226},"kr."]

{"sheet":"5. Gennemførte investeringer","index":4,"n_rows":27,"n_cols":7,"rows_kept":27,"cut":false,"hidden":false,"merged":[[3,1,3,5],[6,5,6,6]]}
[{"$f":"'4. Historiske investeringer'!A1","v":"Verdo Vand A/S"}]
[]
[]
[null,"Fane 5. Gennemførte investeringer i 2010 - 2013 "]
[]
[null,"Tillæg for gennemførte investeringer i 2013"]
[null," Beskrivelse af investeringen   ","Årstal ","Std. levetid (år)   "," Anskaffelses-pris (kr.)","Afskrivning "]
[null,"Ø 50mm < Ledningsnet = Ø110 mm",2013,75,3906938,{"$f":"E8/D8","v":52092.506666666668},"kr."]
[null,"Ø110 mm < Ledningsnet = Ø 250 mm",2013,75,1040905,13878.733333333334,"kr."]
[null,"Ledningsnet = Ø50 mm",2013,75,823882,10985.093333333334,"kr."]
[null,"Ventiler på Ø 50mm < Ledningsnet = Ø110 mm",2013,75,293957,3919.4266666666667,"kr."]
[null,"Ventiler på Ø110 mm < Ledningsnet = Ø 250 mm",2013,75,74586,994.48,"kr."]
[null,"Råvandsstation komplet montering og boringshus/tørbrønd",2013,30,422225,{"$f":"E13/D13","v":14074.166666666666},"kr."]
[null,"SRO-anlæg, vandværk",2013,10,42781,4278.1000000000004,"kr."]
[null,"Elanlæg - vandværk",2013,25,31730,1269.2,"kr."]
[null,"Afregningsmålere, mekaniske",2013,8,262676,32834.5,"kr."]
[null,"Instrumenter (flowmåler+tryk transducer+alarmer)",2013,10,135217,13521.7,"kr."]
[null,"Beholderanlæg - højdebeholder",2013,20,266775,13338.75,"kr."]
[null,"Pumpestation (inkl. evt. hydrofor)/trykforøger, Konstruktioner",2013,30,109389,3646.3,"kr."]
[null,"Etageareal vandbehandlingsbygning",2013,20,62749,3137.45,"kr."]
[null,"Etageareal vandbehandlingsbygning",2013,20,18218,910.9,"kr."]
[null,"Etageareal vandbehandlingsbygning",2013,20,163311,8165.55,"kr."]
[null,"Etageareal vandbehandlingsbygning",2013,20,14898,744.9,"kr."]
[null,"Etageareal vandbehandlingsbygning",2013,20,15961,798.05,"kr."]
[null,"Tillæg for 2013 ",null,null,null,{"$f":"SUM(F8:F24)","v":178589.80666666664},"kr."]
[null,"Tillæg for 2010 - 2012",null,null,null,849499.40500000003,"kr."]
[null,"Samlet tillæg for gennemførte investeringer",null,null,null,{"$f":"F25+F26","v":1028089.2116666667},"kr."]

{"sheet":"6. Korrektion investeringer","index":5,"n_rows":10,"n_cols":4,"rows_kept":10,"cut":false,"hidden":false,"merged":[[3,1,3,3]]}
[{"$f":"'5. Gennemførte investeringer'!A1","v":"Verdo Vand A/S"}]
[]
[]
[null,"Fane 6. Korrektion af tillæg for planlagte investeringer"]
[]
[null,"Korrektion af tillæg for planlagte investeringer vedr. 2013"]
[null,"Tillæg for planlagte investeringer i 2013 i prisloft 2013",252917,"kr."]
[null,"Tillæg for planlagte investeringer i 2013 i prisloft 2014",228160,"kr."]
[null,"Selskabets faktiske afskrivninger på gennemførte investeringer i 2013",{"$f":"'5. Gennemførte investeringer'!F25","v":178589.80666666664},"kr."]
[null,"Korrektion af tillæg for planlagte investeringer vedr. 2013",{"$f":"C9-C7+C9-C8","v":-123897.38666666672},"kr."]

{"sheet":"7. Planlagte investeringer","index":6,"n_rows":44,"n_cols":7,"rows_kept":44,"cut":false,"hidden":false,"merged":[[6,5,6,6],[3,1,3,6]]}
[{"$f":"'6. Korrektion investeringer'!A1","v":"Verdo Vand A/S"}]
[]
[]
[null,"Fane 7. Planlagte investeringer "]
[]
[null,"Tillæg for planlagte investeringer i 2014 og 2015"]
[null,"Beskrivelse af investeringen   ","Årstal ","Std. levetid (år)   ","Anskaffelses-pris (kr.)   ","Afskrivning"]
[null,"Ø110 mm < Ledningsnet = Ø 250 mm",2014,75,221130,{"$f":"E8/D8","v":2948.4},"kr."]
[null,"Boring (inkl. etablering, forerør, filter og prøvepumpning)",2014,30,375000,{"$f":"E9/D9","v":12500},"kr."]
[null,"Elanlæg - vandværk",2014,25,1050000,{"$f":"E10/D10","v":42000},"kr."]
[null,"Ø110 mm < Ledningsnet = Ø 250 mm",2014,75,820000,10933.333333333334,"kr."]
[null,"Filteranlæg, åbne filtre, enkelt filtrering, Mek./EL",2014,25,275000,11000,"kr."]
[null,"Etageareal vandbehandlingsbygning",2014,75,44000,586.66666666666663,"kr."]
[null,"Ø 50mm < Ledningsnet = Ø110 mm",2014,75,2510000,33466.666666666664,"kr."]
[null,"Ø110 mm < Ledningsnet = Ø 250 mm",2014,75,1688000,22506.666666666668,"kr."]
[null,"Stik på ledningsnet, Konstruktioner",2014,75,468000,6240,"kr."]
[null,"SRO-anlæg, vandværk",2014,10,1500000,150000,"kr."]
[null,"Stik på ledningsnet, Konstruktioner",2014,75,225000,3000,"kr."]
[null,"Stik på ledningsnet, Konstruktioner",2014,75,300000,4000,"kr."]
[null,"Stik på ledningsnet, Konstruktioner",2014,75,225000,3000,"kr."]
[null,"Afregningsmålere, mekaniske",2014,8,50000,6250,"kr."]
[null,"Beluftningsanlæg, iltningstrappe, Kontruktioner",2014,20,73870,3693.5,"kr."]
[null,"Beluftningsanlæg, iltningstrappe, Kontruktioner",2014,20,100000,5000,"kr."]
[null,"Beluftningsanlæg, iltningstrappe, Kontruktioner",2014,20,75000,3750,"kr."]
[null,"Solceller",2014,25,1050000,42000,"kr."]
[null,"Solceller",2015,25,700000,28000,"kr."]
[null,"Ø110 mm < Ledningsnet = Ø 250 mm",2015,75,600000,8000,"kr."]
[null,"Råvandsstation komplet montering og boringshus/tørbrønd",2015,30,750000,25000,"kr."]
[null,"Elanlæg - vandværk",2015,25,700000,28000,"kr."]
[null,"Filteranlæg, åbne filtre, enkelt filtrering, Mek./EL",2015,25,850000,34000,"kr."]
[null,"Ø110 mm < Ledningsnet = Ø 250 mm",2015,75,200000,2666.6666666666665,"kr."]
[null,"Etageareal vandbehandlingsbygning",2015,75,50000,666.66666666666663,"kr."]
[null,"Udpumpningsanlæg, rentvandspumper på vandværk",2015,25,150000,6000,"kr."]
[null,"Ø110 mm < Ledningsnet = Ø 250 mm",2015,75,2198000,29306.666666666668,"kr."]
[null,"Ø 250 mm < Ledningsnet = Ø 500mm",2015,75,2574000,34320,"kr."]
[null,"Stik på ledningsnet, Konstruktioner",2015,75,528000,7040,"kr."]
[null,"SRO-anlæg, vandværk",2015,10,600000,60000,"kr."]
[null,"Stik på ledningsnet, Konstruktioner",2015,75,225000,3000,"kr."]
[null,"Stik på ledningsnet, Konstruktioner",2015,75,300000,4000,"kr."]
[null,"Stik på ledningsnet, Konstruktioner",2015,75,225000,3000,"kr."]
[null,"Afregningsmålere, mekaniske",2015,8,50000,6250,"kr."]
[null,"Tillæg for 2014",null,null,null,{"$f":"SUMIF(C8:C41,\"2014\",F8:F41)","v":362875.23333333334},"kr."]
[null,"Tillæg for 2015",null,null,null,{"$f":"SUMIF(C8:C41,\"2015\",F8:F41)","v":279250},"kr."]
[null,"Tillæg i alt",null,null,null,{"$f":"F42+F43","v":642125.2333333334},"kr."]

{"sheet":"8. 1-1 omkostninger","index":7,"n_rows":28,"n_cols":4,"rows_kept":28,"cut":false,"hidden":false,"merged":[[3,1,3,3],[18,1,18,3],[24,1,24,3]]}
[{"$f":"'7. Planlagte investeringer'!A1","v":"Verdo Vand A/S"}]
[]
[]
[null,"Fane 8. 1:1 omkostninger"]
[]
[null,"Tillæg for budgetterede 1:1 omkostninger i 2015"]
[null,"Betaling til Forsyningssekretariatet",33000,"kr."]
[null,"Selskabsskatter ",500000,"kr."]
[null,"Tjenestemandspensioner",26000,"kr."]
[null,"Ejendomsskatter",110000,"kr."]
[null,"Tillæg i alt ",{"$f":"SUM(C7:C10)","v":669000},"kr."]
[]
[]
[null,"Tillæg for afgift for ledningsført vand i 2015"]
[null,"Afgift for ledningsført vand (6,53 kr./m3)",14099000,"kr."]
[null,"Tillæg i alt ",{"$f":"SUM(C15:C15)","v":14099000},"kr."]
[]
[]
[null,"Tillæg for budgetterede nødvendige udgifter til revisorerklæringer samt ordinært medlemskab af DANVA og FVD i 2015"]
[null,"Betaling for ordinært medlemskab af DANVA/FVD",120000,"kr."]
[null,"Betaling for revisorerklæringer",33000,"kr."]
[null,"Tillæg i alt ",{"$f":"SUM(C20:C21)","v":153000},"kr."]
[]
[]
[null,"Korrektion af tillæg for faktiske 1:1 omkostninger (inkl. afgift for ledningsført vand, revisorerklæringer og ordinært medlemskab af DANVA/FVD) i 2013"]
[null,"Selskabets faktiske 1:1 omkostninger mv. i 2013, jf. reguleringsregnskabet",17265805,"kr."]
[null,"Tillæg for budgetterede 1:1 omkostninger mv. i prisloft 2013",15712822,"kr."]
[null,"Korrektion af tillæg for budgetterede 1:1 omkostninger mv. i 2013",{"$f":"C26-C27","v":1552983},"kr."]

{"sheet":"9. Miljø- og servicemål","index":8,"n_rows":15,"n_cols":4,"rows_kept":15,"cut":false,"hidden":false,"merged":[[3,1,3,3]]}
["Verdo Vand A/S"]
[]
[]
[null,"Fane 9. Driftsomkostninger til miljø- og servicemål "]
[]
[null,"Tillæg for budgetterede driftsomkostninger til miljø- og servicemål i 2015"]
[null,"Dokumenteret Drikkevandssikkerhed (DDS)",283000,"kr."]
[null,"Tillæg i alt",{"$f":"SUM(C7:C7)","v":283000},"kr."]
[]
[]
[]
[null,"Korrektion af tillæg for faktiske driftsomkostninger til miljø- og servicemål i 2013"]
[null,"Selskabets faktiske driftsomkostninger til miljø- og servicemål i 2013, jf. reguleringsregnskabet",383834,"kr."]
[null,"Tillæg for budgetterede driftsomkostninger til miljø- og servicemål i prisloft 2013",418000,"kr."]
[null,"Korrektion af tillæg for budgetterede driftsomkostninger til miljø- og servicemål i 2013",{"$f":"C13-C14","v":-34166},"kr."]

{"sheet":"10. Nettofinansielle poster","index":9,"n_rows":16,"n_cols":4,"rows_kept":16,"cut":false,"hidden":false,"merged":[[3,1,3,3]]}
[{"$f":"'2. Samlet prisloft'!A1","v":"Verdo Vand A/S"}]
[]
[]
[null,"Fane 10. Nettofinansielle poster"]
[]
[null,"Tillæg for budgetterede nettofinansielle poster i 2015"]
[null,"Budgetterede renteudgifter og gebyrer i 2015",3000000,"kr."]
[null,"Budgetterede renteindtægter i 2015",0,"kr."]
[null,"Tillæg/fradrag i alt",{"$f":"C7-C8","v":3000000},"kr."]
[]
[]
[]
[null,"Korrektion af tillæg for faktiske nettofinansielle poster i 2013"]
[null,"Selskabets faktiske nettofinansielle poster i 2013, jf. reguleringsregnskabet",2910119,"kr."]
[null,"Tillæg for budgetterede nettofinansielle poster i prisloft 2013",4450000,"kr."]
[null,"Korrektion af tillæg for budgetterede nettofinansielle poster i 2013",{"$f":"C14-C15","v":-1539881},"kr."]

{"sheet":"11. Over- eller underdækning","index":10,"n_rows":11,"n_cols":4,"rows_kept":11,"cut":false,"hidden":false,"merged":[[3,1,3,3]]}
[{"$f":"'1. Forside'!A1","v":"Verdo Vand A/S"}]
[]
[]
[null,"Fane 11. Over- eller underdækning til og med 2010"]
[]
[null,"Tillæg/fradrag for over- eller underdækning til og med 2010"]
[null,"Opgjort over- eller underdækning per 31. december 2010",-25910177,"kr."]
[null,"Heraf beløb indregnet i prislofterne for 2011 - 2014",-7853227.9841269851,"kr."]
[null,"Endnu ikke indregnet over- eller underdækning",{"$f":"C7-C8","v":-18056949.015873015},"kr."]
[null,"Resterende indregningsperiode (fastsat i prisloftet for 2012)",6,"år"]
[null,"Tillæg/fradrag i alt",{"$f":"IF(C7=0,0,C9/C10)","v":-3009491.5026455023},"kr."]

{"sheet":"12. Kontrol med indtægtsrammen","index":11,"n_rows":38,"n_cols":12,"rows_kept":38,"cut":false,"hidden":false,"merged":[[3,1,3,5],[30,1,30,4],[5,1,5,5]]}
[{"$f":"'11. Over- eller underdækning'!A1","v":"Verdo Vand A/S"}]
[]
[]
[null,"Fane 12. Korrektion for overholdelse af indtægtsrammen i prisloftet for 2013"]
[]
[null,"Samlet opgørelse vedrørende overholdelse af indtægtsrammen i prisloftet for 2013"]
[null,"Indtægtsramme i prisloftet for 2013",null,null,37220904.248473197,"kr."]
[null,"Ikke anvendt likviditet vedrørende investeringer i 2013"]
[null,"Tillæg for historiske investeringer ",8142825.906615952,"kr."]
[null,"Tillæg for gennemførte investeringer i 2011",684812,"kr."]
[null,"Korrektion af tillæg for planlagte investeringer i 2011",-265606,"kr."]
[null,"Tillæg for planlagte investeringer i 2012 og 2013",513800,"kr."]
[null,"Indtægter fra tilslutningsbidrag",527847,"kr."]
[null,"Indtægter fra salg af anlægsaktiver",0,"kr."]
[null,"Erstatninger vedr. anlægsaktiver mv.",0,"kr."]
[null,"Ekstraordinær effektiviseringsgevinst anvendt til investeringer",334524,"kr."]
[null,"Udgifter til investeringer",-9938204,"kr."]
[null,"Ikke anvendt likviditet vedr. investeringer i alt",{"$f":"SUM(C9:C17)","v":-1.0933840479701757},"kr.",{"$f":"IF(C18<0,0,-C18)","v":0},"kr."]
[null,"Ekstraordinære effektiviseringsgevinster anvendt til takstnedsættelse"]
[null,"Ekstraordinær effektiviseringsgevinst anvendt til takstnedsættelse",0,"kr.",{"$f":"-C20","v":0},"kr."]
[null,"Korrektion af ikke opkrævet tillæg fra 2011 i prisloft 2013"]
[null,"Korrektion af ikke opkrævet tillæg fra 2011 i prisloft 2013",0,"kr.",{"$f":"-C22","v":0},"kr."]
[null,"Indtægter fra primære aktiviteter mv."]
[null,"Indtægter fra kubikmetertakster, faste takster, særbidrag, målergebyrer samt andre takster og gebyrer",37265082,"kr."]
[null,"Andre indtægter i prisloftåret, som selskabet har opnået i forbindelse med eller som følge af selskabets primære aktiviteter",0,"kr."]
[null,"Indtægter fra primære aktiviteter mv. i alt",{"$f":"SUM(C24:C25)","v":37265082},"kr.",{"$f":"-C26","v":-37265082},"kr."]
[null,"Tillæg/fradrag i prisloftet for 2015 i alt",null,null,{"$f":"E7+E18+E20+E22+E26","v":-44177.751526802778},"kr."]
[]
[]
[]
[null,"Oversigt over ekstraordinære effektiviseringsgevinster"]
[]
[null,null,2012,null,2013,null,2014,null,2015,null,2016]
[null,"Indhentet ekstraordinær effektiviseringsgevinst",58527,"kr.",1279051,"kr.",null,"kr.",null,"kr.",null,"kr."]
[null,"Gevinst anvendt til investeringer",0,"kr.",334524,"kr.",null,"kr.",null,"kr.",null,"kr."]
[null,"Gevinst anvendt til takstnedsættelse",0,"kr.",0,"kr.",null,"kr.",null,"kr.",null,"kr."]
[null,"Korrektion for  effektiviseringsgevinst der ikke er anvendt inden 4 år",0,"kr.",0,"kr.",null,"kr.",null,"kr.",{"$f":"IF(C38>SUM(E35:I36),C38-SUM(E35:I36),0)*-1","v":0},"kr."]
[null,"Resterende gevinst",{"$f":"C34-C35-C36","v":58527},"kr.",{"$f":"C38+E34-E35-E36","v":1003054},"kr.",{"$f":"E38+G34-G35-G36","v":1003054},"kr.",{"$f":"G38+I34-I35-I36","v":1003054},"kr.",{"$f":"K34-K35-K36+K37+I38","v":1003054},"kr."]